bitfinex/quotes_ETHUSD_20250622
["timestamp","ask_amount","ask_price","bid_price","bid_amount"]
[1750607802708,0.04583485,2180.1,2179.5,0.7513]
[1750607803082,0.1487,2180.0,2179.5,0.7513]
[1750607803277,0.04583485,2179.9,2179.5,0.7513]
[1750607803479,0.04583485,2179.9,2179.3,2.217]
[1750607803809,0.04583485,2179.9,2179.4,10.01040041]
[1750607803983,7.959,2179.8,2179.4,10.01040041]
[1750607804382,7.959,2179.8,2179.5,0.04587853]
[1750607804775,7.959,2179.8,2179.4,16.81441017]
[1750607805809,7.96,2180.1,2179.7,10.01040041]
[1750607805999,10.0,2180.3,2180.0,10.01040041]
[1750607806194,0.04583485,2180.2,2179.8,2.217]
[1750607806397,10.0,2180.3,2179.7,10.01040041]
[1750607806595,0.04583485,2180.2,2179.7,10.01040041]
[1750607808780,0.1487,2180.1,2179.3,4.588529]
[1750607809009,0.04583485,2180.0,2179.6,2.217]
[1750607809213,7.958,2179.9,2179.5,10.01040041]
[1750607810801,0.04583485,2179.8,2179.5,10.01040041]
[1750607810997,0.04583485,2179.8,2179.3,2.9898]
[1750607811203,10.04583485,2179.8,2179.3,0.7728]
[1750607811405,10.0,2179.8,2179.3,2.9898]
[1750607811737,0.04583485,2179.7,2179.3,2.9898]
[1750607814098,10.0,2179.8,2179.3,2.9898]
[1750607814303,10.0,2179.8,2179.3,0.7728]
[1750607815323,7.958,2179.9,2179.3,0.7728]
[1750607815513,0.04583485,2179.8,2179.3,0.81868046]
[1750607815696,0.04583485,2179.8,2179.3,5.40715575]
[1750607815890,0.04583485,2179.8,2179.3,0.81868046]
[1750607816424,10.1487,2180.1,2179.5,10.01040041]
[1750607816622,7.96,2180.3,2179.6,0.04587642]
[1750607816939,12.5885728,2180.2,2179.5,10.01040041]
[1750607817124,12.54273795,2180.2,2179.5,10.01040041]
[1750607817331,0.04583485,2180.1,2179.5,10.01040041]
[1750607817645,0.1487,2180.0,2179.3,12.26797342]
[1750607817799,0.04583485,2179.9,2179.3,2.217]
[1750607817997,7.956,2179.8,2179.3,2.217]
[1750607818199,0.04583485,2179.7,2179.3,2.217]
[1750607818727,7.956,2179.8,2179.3,2.217]
[1750607818924,8.00183485,2179.8,2179.2,10.82600041]
[1750607819314,8.00183485,2179.8,2179.3,13.35105483]
[1750607820259,0.1487,2180.0,2179.4,0.04588256]
[1750607820415,0.1487,2180.0,2179.3,13.35105483]
[1750607820416,0.1487,2178.4,2178.0,0.5]
[1750607820610,8.049,2178.3,2178.0,0.5]
[1750607820814,0.23959282,2178.4,2178.1,0.8156]
[1750607821110,0.23959282,2178.4,2178.2,1.5605226]
[1750607821339,0.23959282,2178.4,2178.3,0.55]
[1750607821537,0.23959282,2178.4,2178.3,12.767]
[1750607821710,0.23959282,2178.4,2178.3,3.0326]
[1750607822037,4.59085527,2178.3,2178.0,0.5]
[1750607822245,0.05739621,2178.2,2178.0,0.5]
[1750607822412,8.084,2178.1,2178.0,0.5]
[1750607823314,8.081,2178.1,2178.0,0.5]
[1750607823752,0.23959282,2178.4,2177.9,0.005]
[1750607823753,0.1487,2178.0,2177.9,0.005]
[1750607824052,8.2637,2178.0,2177.9,0.005]
[1750607824564,23.40506822,2178.0,2177.9,0.005]
[1750607824964,23.40506822,2178.0,2177.7,0.2194891]
[1750607824965,5.14178987,2177.8,2177.7,0.2194891]
[1750607825170,13.36521115,2177.8,2177.7,0.2194891]
[1750607825341,13.30778987,2177.8,2177.7,0.2194891]
[1750607825547,8.165,2177.8,2177.7,0.2194891]
[1750607825739,0.1487,2177.9,2177.7,0.2194891]
[1750607825946,8.168,2177.8,2177.7,0.2194891]
[1750607826554,8.168,2177.8,2177.7,2.5304891]
[1750607827071,8.168,2177.8,2177.7,0.2194891]
[1750607827585,1.50591898,2178.0,2177.7,0.2194891]
[1750607827747,8.23140909,2177.9,2177.7,0.2194891]
[1750607827953,8.174,2177.9,2177.7,0.2194891]
[1750607828305,0.05740421,2177.8,2177.7,0.2194891]
[1750607829187,1.50591898,2178.0,2177.7,0.2194891]
[1750607829479,8.175,2177.9,2177.7,0.2194891]
[1750607829688,8.175,2177.9,2177.8,2.311]
[1750607829843,1.50591898,2178.0,2177.8,6.90278987]
[1750607830046,1.50591898,2178.0,2177.9,4.59157904]
[1750607830489,1.50591898,2178.0,2177.8,8.07644258]
[1750607830983,1.50591898,2178.0,2177.8,2.311]
[1750607831168,1.50591898,2178.0,2177.7,0.2194891]
[1750607831485,1.50591898,2178.0,2177.8,2.311]
[1750607831991,1.50591898,2178.0,2177.8,6.90277496]
[1750607832206,1.50591898,2178.0,2177.8,2.311]
[1750607832372,1.50591898,2178.0,2177.8,4.02679423]
[1750607832568,1.50591898,2178.0,2177.9,15.41611594]
[1750607833279,1.50591898,2178.0,2177.9,18.27711594]
[1750607833684,1.50591898,2178.0,2177.9,28.27711594]
[1750607834993,1.50591898,2178.0,2177.9,23.6855369]
[1750607835204,1.50591898,2178.0,2177.9,29.62739008]
[1750607835574,1.50591898,2178.0,2177.9,10.789]
[1750607835774,1.50591898,2178.0,2177.9,12.311]
[1750607836097,1.50591898,2178.0,2177.8,11.031]
[1750607836270,1.50591898,2178.0,2177.9,2.311]
[1750607836677,1.50591898,2178.0,2177.7,0.2194891]
[1750607837073,1.50591898,2178.0,2177.7,2.5304891]
[1750607837376,0.20609304,2177.9,2177.7,0.2194891]
[1750607837789,8.153,2177.8,2177.7,0.2194891]
[1750607838110,1.50591898,2178.0,2177.7,0.2194891]
[1750607838722,1.56331519,2178.0,2177.7,0.2194891]
[1750607839214,1.50591898,2178.0,2177.7,0.2194891]
[1750607839402,1.50591898,2178.0,2177.7,5.56188176]
[1750607839595,1.50591898,2178.0,2177.7,0.9698891]
[1750607839806,1.50591898,2178.0,2177.8,0.02306513]
[1750607840001,1.50591898,2178.0,2177.7,3.22236755]
[1750607840202,1.50591898,2178.0,2177.7,7.81421395]
[1750607840399,1.50591898,2178.0,2177.7,3.22236755]
[1750607840720,0.20608777,2177.9,2177.7,0.2194891]
[1750607841026,4.74048987,2177.8,2177.7,0.2194891]
[1750607841177,8.3077,2177.8,2177.7,0.2194891]
[1750607841380,12.89948987,2177.8,2177.7,0.2194891]
[1750607843322,8.2997,2177.8,2177.7,0.2194891]
[1750607843515,8.2967,2177.8,2177.7,0.2194891]
[1750607843724,4.74048987,2177.8,2177.7,0.2194891]
[1750607843930,0.20611313,2177.8,2177.7,0.2194891]
[1750607844137,22.942903,2177.8,2177.7,0.2194891]
[1750607844299,22.88548987,2177.8,2177.7,0.2194891]
[1750607848392,0.1487,2177.6,2175.6,0.2244891]
[1750607848634,0.1487,2177.1,2175.8,3.4052446]
[1750607848953,0.1487,2177.1,2176.3,4.5949428]
[1750607849247,0.1487,2177.1,2176.5,10.0355369]
[1750607849248,8.142,2177.1,2176.5,10.0355369]
[1750607849398,8.142,2177.1,2176.5,11.81047715]
[1750607849615,8.142,2177.1,2176.5,1.77494025]
[1750607849816,0.05741992,2177.0,2176.4,5.40190147]
[1750607850247,8.145,2176.9,2176.4,0.8072]
[1750607850448,0.05742838,2176.8,2176.4,0.8072]
[1750607850757,0.05742838,2176.8,2176.3,2.312]
[1750607851121,8.176,2176.9,2176.5,0.8072]
[1750607851321,0.6194197,2177.2,2176.5,0.8072]
[1750607851536,8.174,2177.1,2176.6,2.312]
[1750607851736,0.05742409,2177.0,2176.6,2.312]
[1750607851930,8.174,2177.0,2176.6,2.312]
[1750607852118,0.05742415,2176.9,2176.5,0.8072]
[1750607852558,0.05742521,2177.1,2176.5,0.83033301]
[1750607852759,0.05742521,2177.1,2176.5,0.8072]
[1750607853055,8.176,2177.0,2176.6,2.313]
[1750607853466,0.05742729,2176.9,2176.6,2.313]
[1750607854058,8.176,2177.0,2176.6,2.343]
[1750607854230,0.1487,2177.2,2176.6,2.343]
[1750607854424,8.168,2177.2,2176.7,4.59407606]
[1750607854663,8.168,2177.2,2176.7,5.39173799]
[1750607854868,8.168,2177.2,2176.7,0.7977]
[1750607855263,0.05741731,2177.1,2176.7,0.7977]
[1750607855627,0.05741731,2177.1,2176.6,2.343]
[1750607855938,0.05741731,2177.1,2176.4,0.7977]
[1750607855939,0.1487,2177.0,2176.4,0.7977]
[1750607856452,0.05741731,2177.1,2176.5,2.36613832]
[1750607856656,0.05741731,2177.1,2176.5,4.12242581]
[1750607856971,8.22442245,2177.1,2176.5,8.71687017]
[1750607857259,8.167,2177.1,2176.5,4.12242581]
[1750607857459,8.167,2177.1,2176.6,2.343]
[1750607857774,8.167,2177.1,2176.6,6.93722029]
[1750607857974,8.165,2177.1,2176.6,6.93722029]
[1750607858139,8.165,2177.1,2176.6,2.343]
[1750607858873,8.165,2177.1,2176.7,0.02312286]
[1750607859386,8.165,2177.1,2176.6,20.32082823]
[1750607859530,8.16,2177.1,2176.6,20.32082823]
[1750607859861,8.16,2177.1,2176.6,6.93721189]
[1750607860063,0.05742182,2177.0,2176.6,2.343]
[1750607860565,8.16,2177.1,2176.7,4.59399173]
[1750607860937,8.16,2177.1,2176.8,13.38361634]
[1750607861138,8.16,2177.1,2176.8,2.343]
[1750607861342,0.05742196,2177.0,2176.8,2.343]
[1750607862155,0.05742196,2177.0,2176.5,13.38361634]
[1750607862381,0.05742196,2177.0,2176.6,2.343]
[1750607863067,8.16,2177.1,2176.6,2.36613186]
[1750607863252,8.16,2177.1,2176.6,8.6150782]
[1750607863461,8.16,2177.1,2176.6,8.59194634]
[1750607863663,8.16,2177.1,2176.7,4.61722874]
[1750607863839,8.16,2177.1,2176.7,0.02312268]
[1750607864039,8.14,2177.2,2176.8,14.13481634]
[1750607864343,0.1487,2177.6,2177.1,13.38361634]
[1750607864544,1.46646189,2177.9,2177.4,14.13481634]
[1750607864741,1.46646189,2177.9,2177.8,13.38361634]
[1750607864955,8.143,2178.1,2177.8,13.38361634]
[1750607865154,0.05739691,2178.0,2177.7,2.344]
[1750607865366,8.143,2178.1,2177.7,2.344]
[1750607865533,0.05739656,2178.0,2177.7,2.344]
[1750607866554,0.05739656,2178.0,2177.4,14.13481634]
[1750607866755,0.1487,2177.9,2177.5,2.344]
[1750607866963,0.0574064,2177.8,2177.5,2.344]
[1750607867330,0.0574064,2177.8,2177.1,25.17281634]
[1750607867672,0.0574064,2177.8,2177.2,2.344]
[1750607868082,0.0574064,2177.8,2177.3,2.343]
[1750607868236,0.0574064,2177.8,2177.1,25.17281634]
[1750607868442,0.0574064,2177.8,2177.2,2.343]
[1750607869370,8.137,2177.9,2177.4,13.38361634]
[1750607869697,0.05739913,2177.8,2177.5,2.343]
[1750607869899,0.05739913,2177.8,2177.4,13.38361634]
[1750607870063,0.05739913,2177.8,2177.4,15.72661634]
[1750607870260,0.05739913,2177.8,2177.5,2.343]
[1750607870496,0.05739913,2177.8,2177.4,13.38361634]
[1750607870699,0.05739913,2177.8,2177.5,2.343]
[1750607871078,0.05739913,2177.8,2177.2,13.38361634]
[1750607871376,0.1487,2177.7,2177.3,2.343]
[1750607871974,0.05739913,2177.8,2177.3,2.343]
[1750607872197,0.05740466,2177.9,2177.5,13.38361634]
[1750607872486,8.127,2177.8,2177.5,13.38361634]
[1750607872902,0.20610206,2177.7,2177.2,2.343]
[1750607873065,0.20610206,2177.7,2177.1,11.038]
[1750607873267,0.20610206,2177.7,2177.1,13.381]
[1750607874199,0.20610206,2177.7,2176.9,24.21501634]
[1750607874403,4.74095364,2177.6,2176.9,2.343]
[1750607874694,0.05741893,2177.5,2176.8,10.0]
[1750607874903,0.05741893,2177.5,2176.9,2.343]
[1750607875265,0.05741893,2177.5,2176.8,10.0]
[1750607875596,0.05741893,2177.5,2176.9,2.343]
[1750607877411,0.0574196,2177.5,2177.0,14.20381634]
[1750607877581,0.0574196,2177.5,2176.7,14.20381634]
[1750607877784,0.1487,2177.4,2176.4,0.8202]
[1750607877966,0.1487,2177.2,2176.4,3.1632]
[1750607878166,0.1487,2177.2,2176.6,13.38361634]
[1750607878367,0.1487,2177.2,2176.6,15.50007663]
[1750607878612,0.05742013,2177.1,2176.6,15.50007663]
[1750607878792,0.05742013,2177.1,2176.6,13.38361634]
[1750607879698,0.05742013,2177.1,2176.6,17.97793196]
[1750607880413,0.20612013,2177.2,2176.7,0.02312285]
[1750607880601,0.1487,2177.2,2176.6,13.38361634]
[1750607880801,0.20611986,2177.2,2176.7,2.343]
[1750607881690,0.1487,2177.2,2176.7,2.343]
[1750607882402,0.1487,2177.2,2176.9,13.38361634]
[1750607882599,8.102,2177.4,2176.9,17.97730218]
[1750607882801,8.2427,2177.5,2177.0,13.38361634]
[1750607883380,2.343,2178.6,2177.4,14.16391634]
[1750607883596,8.30610156,2178.5,2177.8,13.38361634]
[1750607883794,8.2487,2178.5,2177.8,13.38361634]
[1750607884107,0.05739608,2178.4,2177.8,13.38361634]
[1750607884308,8.099,2178.3,2177.8,13.38361634]
[1750607884613,0.1487,2178.1,2177.4,0.7803]
[1750607884821,4.74028371,2177.9,2177.0,15.67637566]
[1750607885121,0.05741134,2177.8,2177.0,15.67637566]
[1750607885288,8.112,2177.7,2177.0,2.299]
[1750607885485,0.05741134,2177.6,2177.0,2.299]
[1750607885710,0.05741134,2177.6,2177.0,2.32210527]
[1750607886019,0.05741134,2177.6,2177.0,2.299]
[1750607886384,0.05741134,2177.6,2177.2,10.03444223]
[1750607886585,0.05741134,2177.8,2177.2,10.03444223]
[1750607887393,0.1487,2177.9,2177.5,10.03444223]
[1750607887614,0.1487,2177.9,2177.5,12.33244223]
[1750607888129,0.20610182,2177.9,2177.5,12.33244223]
[1750607888494,0.20610182,2177.9,2177.5,2.298]
[1750607889720,0.20610182,2177.9,2177.4,2.298]
[1750607890130,0.20610182,2177.9,2177.3,2.298]
[1750607890289,0.20610182,2177.9,2177.1,0.7859]
[1750607890486,4.79770147,2177.9,2177.1,0.7859]
[1750607890823,0.1487,2177.5,2176.7,2.298]
[1750607891014,8.14341974,2177.4,2176.8,10.03444223]
[1750607891217,8.086,2177.4,2176.8,10.03444223]
[1750607891838,0.1487,2177.5,2176.8,10.03444223]
[1750607891839,8.2367,2177.5,2176.9,0.02311415]
[1750607892289,0.05741286,2177.4,2176.8,14.62822303]
[1750607894091,8.2367,2177.5,2177.1,10.03444223]
[1750607894291,8.072,2177.7,2177.2,2.298]
[1750607895243,0.1487,2177.8,2177.4,10.03444223]
[1750607895450,0.1487,2177.8,2177.4,2.298]
[1750607895628,0.05740546,2177.7,2177.2,2.298]
[1750607896344,0.1487,2177.6,2177.2,2.298]
[1750607896709,0.20611099,2177.6,2177.2,2.298]
[1750607897045,0.20611099,2177.6,2177.0,10.0]
[1750607897210,0.20611099,2177.6,2177.2,12.33244223]
[1750607897409,0.1487,2177.6,2177.2,12.33244223]
[1750607897649,0.20611045,2177.6,2177.2,2.298]
[1750607898132,0.20611045,2177.6,2176.9,10.03444223]
[1750607898338,4.79832235,2177.6,2176.8,2.298]
[1750607898643,4.59248364,2177.5,2176.8,2.298]
[1750607898856,0.20611965,2177.4,2176.8,2.298]
[1750607899144,0.1487,2177.3,2176.7,2.298]
[1750607899851,0.20611962,2177.3,2176.7,2.298]
[1750607900249,0.1487,2177.3,2176.9,10.03444223]
[1750607900456,8.2077,2177.3,2176.9,10.03444223]
[1750607900661,0.05741616,2177.2,2176.9,10.03444223]
[1750607900833,0.05741616,2177.2,2176.6,10.03444223]
[1750607901152,0.1487,2177.1,2176.3,10.03444223]
[1750607901452,0.1487,2176.8,2176.2,0.46261512]
[1750607901625,0.1487,2176.6,2175.9,2.298]
[1750607901830,0.05744284,2176.5,2175.9,2.298]
[1750607903323,0.1487,2176.1,2175.6,0.2244891]
[1750607903520,8.2057,2176.4,2175.7,10.05762403]
[1750607903732,0.1487,2176.4,2176.0,10.03444223]
[1750607903950,0.1487,2176.7,2176.1,4.5952585]
[1750607904134,0.1487,2176.7,2176.3,10.03444223]
[1750607904328,0.20613278,2176.7,2176.3,10.03444223]
[1750607904524,0.1487,2177.0,2176.4,0.02314692]
[1750607904727,8.067,2176.9,2176.4,6.08299851]
[1750607904928,8.067,2176.9,2176.4,2.32214692]
[1750607905146,0.05742711,2176.8,2176.4,2.299]
[1750607905515,0.05742711,2176.8,2176.2,2.299]
[1750607905723,0.1487,2176.7,2176.0,10.03444223]
[1750607905932,0.05743797,2176.6,2176.0,10.03444223]
[1750607906152,0.05743797,2176.6,2176.1,2.299]
[1750607906454,0.1487,2176.5,2175.9,10.03444223]
[1750607906646,0.05744454,2176.4,2175.9,10.03444223]
[1750607906842,8.063,2176.3,2175.9,10.03444223]
[1750607907052,0.05744533,2176.2,2175.9,10.03444223]
[1750607907280,0.05744533,2176.2,2175.6,10.25893133]
[1750607907460,0.1487,2176.1,2175.6,0.2244891]
[1750607907787,0.05745587,2176.0,2175.6,10.25893133]
[1750607907943,8.2187,2176.1,2175.6,10.25893133]
[1750607908145,0.0574506,2176.0,2175.6,10.25893133]
[1750607908346,0.0574506,2176.0,2175.6,12.55793133]
[1750607908651,0.05745059,2176.0,2175.6,12.55793133]
[1750607908847,0.1487,2176.3,2175.7,0.02318378]
[1750607909183,0.05744635,2176.2,2175.7,0.02318378]
[1750607909340,0.05744635,2176.2,2175.7,2.32218378]
[1750607909544,0.05744634,2176.5,2175.9,10.03444223]
[1750607909779,0.05744634,2176.5,2175.9,14.63019862]
[1750607910078,0.05744634,2176.5,2176.0,0.02315833]
[1750607910276,0.05744634,2176.5,2176.0,4.61874324]
[1750607910484,0.20613779,2176.6,2176.0,0.02315833]
[1750607910643,0.20613779,2176.6,2175.9,10.03444223]
[1750607911788,0.20613779,2176.6,2176.0,10.0]
[1750607912090,4.80047991,2176.6,2175.6,1.9399561]
[1750607912256,4.80047991,2176.6,2176.0,2.299]
[1750607912779,0.20613779,2176.6,2175.9,2.299]
[1750607913187,0.20613779,2176.6,2176.1,10.0]
[1750607914464,0.20613779,2176.6,2176.1,12.266]
[1750607915173,0.20613779,2176.6,2176.1,10.0]
[1750607915491,0.20613779,2176.6,2176.1,12.266]
[1750607915695,0.20613779,2176.6,2176.1,16.86132256]
[1750607915854,0.1487,2177.0,2176.3,10.03444223]
[1750607916188,0.1487,2177.0,2176.6,10.03444223]
[1750607916390,0.1487,2177.0,2176.7,2.266]
[1750607917070,0.05742157,2176.9,2176.7,2.266]
[1750607917274,0.05742157,2176.9,2175.8,4.59581367]
[1750607917479,0.1487,2176.7,2175.8,0.48203028]
[1750607917699,0.1487,2176.5,2175.5,3.0728]
[1750607917901,0.1487,2176.3,2175.7,10.03444223]
[1750607918100,0.1487,2176.7,2176.2,4.59508067]
[1750607918287,0.20614446,2176.9,2176.5,10.03444223]
[1750607918482,0.1487,2176.9,2176.5,10.03444223]
[1750607918665,0.1487,2176.9,2176.5,12.30044223]
[1750607918864,0.1487,2176.9,2176.5,2.266]
[1750607919088,0.1487,2176.9,2176.2,12.30044223]
[1750607919306,0.1487,2176.6,2175.6,4.82081163]
[1750607919466,8.11044373,2176.5,2175.7,15.13584462]
[1750607919670,8.053,2176.5,2175.7,10.51652339]
[1750607919885,0.1487,2176.4,2175.7,10.51652339]
[1750607920195,0.05744396,2176.3,2175.7,10.51652339]
[1750607920397,0.1487,2176.4,2176.0,10.03444223]
[1750607920807,0.2061426,2176.4,2176.0,10.03444223]
[1750607921003,0.1487,2176.4,2176.1,2.266]
[1750607921185,7.96,2177.1,2176.1,2.266]
[1750607921186,8.2017,2176.7,2176.1,2.266]
[1750607921387,0.0574347,2176.6,2176.1,6.86132978]
[1750607921602,0.0574347,2176.6,2176.3,10.03444223]
[1750607921894,0.0574347,2176.6,2176.0,10.03444223]
[1750607922112,0.0574347,2176.6,2176.0,12.30044223]
[1750607922419,0.1487,2176.5,2175.6,1.0312891]
[1750607922618,0.05744863,2176.4,2175.9,10.03444223]
[1750607922819,8.051,2176.4,2175.9,10.03444223]
[1750607923226,0.05744447,2176.3,2175.9,10.03444223]
[1750607923385,0.05744447,2176.3,2175.8,2.266]
[1750607923588,0.1487,2176.5,2175.9,10.03444223]
[1750607923802,8.047,2176.4,2175.9,10.03444223]
[1750607924222,0.05743652,2176.3,2175.7,10.0]
[1750607924420,0.1487,2176.2,2175.7,12.266]
[1750607924610,0.05745026,2176.1,2175.7,12.266]
[1750607924818,0.05745026,2176.1,2175.7,10.0]
[1750607925021,0.05745026,2176.1,2175.7,12.266]
[1750607925560,0.1487,2176.2,2175.7,2.266]
[1750607925727,0.1487,2176.2,2176.0,10.0]
[1750607925901,8.04,2176.3,2176.0,10.0]
[1750607926109,0.1487,2176.5,2176.2,10.03444223]
[1750607926709,0.1487,2176.7,2176.2,12.30044223]
[1750607926928,8.1937,2176.7,2176.2,12.30044223]
[1750607927106,0.1487,2176.7,2176.3,10.02314865]
[1750607927303,0.1487,2176.7,2176.3,10.0]
[1750607927641,0.1487,2176.7,2176.3,4.59492346]
[1750607927802,0.1487,2176.7,2176.2,19.58510843]
[1750607928002,0.20612907,2176.7,2176.2,14.99003604]
[1750607928243,0.20612907,2176.7,2175.8,0.8068]
[1750607928412,0.20612907,2176.7,2176.0,2.266]
[1750607928998,0.20612907,2176.7,2176.0,2.28915753]
[1750607929198,0.1487,2176.6,2175.6,0.2244891]
[1750607929444,8.08942907,2176.7,2175.8,10.03444223]
[1750607929445,0.1487,2176.4,2175.8,10.03444223]
[1750607929620,8.043,2176.3,2175.9,0.02316914]
[1750607929840,0.1487,2176.4,2176.1,10.03444223]
[1750607930050,0.1487,2176.4,2175.8,1.48785275]
[1750607930051,0.1487,2176.4,2175.9,12.266]
[1750607930360,0.1487,2176.2,2175.6,0.2244891]
[1750607930749,0.1487,2176.2,2175.6,12.4904891]
[1750607930944,0.1487,2176.2,2175.6,0.2244891]
[1750607931148,4.65283899,2176.1,2175.6,0.2244891]
[1750607931352,0.05744869,2176.1,2175.6,0.2244891]
[1750607932223,4.65286432,2176.1,2175.6,0.2244891]
[1750607932458,0.1487,2176.0,2175.6,0.2244891]
[1750607932640,0.05745728,2175.9,2175.6,0.2244891]
[1750607933567,0.20615398,2176.0,2175.6,0.2244891]
[1750607933941,4.80185921,2176.0,2175.6,0.2244891]
[1750607934137,8.035,2175.9,2175.6,0.2244891]
[1750607934338,0.05745599,2175.8,2175.6,0.2244891]
[1750607934548,0.1487,2175.7,2175.6,0.2244891]
[1750607935837,0.1487,2175.9,2175.6,0.2244891]
[1750607936037,8.029,2175.8,2175.6,0.2244891]
[1750607936547,4.80237888,2175.7,2175.6,0.2244891]
[1750607936864,0.20615698,2175.7,2175.6,0.2244891]
[1750607937159,8.25416789,2175.7,2175.6,0.2244891]
[1750607937376,8.1967,2175.7,2175.6,0.2244891]
[1750607937728,10.0,2175.3,2173.4,0.2244891]
[1750607937935,10.0,2175.3,2173.5,6.87763266]
[1750607937936,4.60084307,2173.6,2173.5,6.87763266]
[1750607938156,8.22,2173.7,2173.5,6.42865446]
[1750607938362,13.42818494,2173.6,2173.5,6.42865446]
[1750607938581,10.0,2174.8,2173.7,2.3356002]
[1750607938892,0.23975219,2175.2,2173.9,22.25933281]
[1750607938893,0.55,2174.6,2173.9,22.25933281]
[1750607939089,0.05750943,2174.5,2174.3,2.26603314]
[1750607939244,0.0851,2174.8,2174.2,12.33090755]
[1750607939570,0.23975219,2175.2,2174.1,2.357]
[1750607939571,0.23975219,2175.2,2174.6,12.26617839]
[1750607939782,0.05748236,2175.1,2174.9,10.0]
[1750607939989,0.23975219,2175.2,2174.9,2.23914422]
[1750607940552,0.23975219,2175.2,2175.1,10.03444223]
[1750607941380,0.23975219,2175.2,2175.1,25.181932]
[1750607941555,8.3991,2176.4,2175.3,0.55]
[1750607941754,0.05745025,2176.3,2175.6,10.03444223]
[1750607941989,0.05745025,2176.3,2175.7,0.02317759]
[1750607942164,0.05745025,2176.3,2175.6,10.03444223]
[1750607942885,10.45211834,2176.7,2176.2,10.03444223]
[1750607942886,0.0851,2176.7,2176.2,10.03444223]
[1750607943200,0.0851,2176.7,2176.2,12.39244223]
[1750607943358,0.05743967,2176.6,2176.2,12.39244223]
[1750607943756,0.05743967,2176.6,2175.9,10.03444223]
[1750607944294,0.05743967,2176.6,2176.0,2.358]
[1750607944887,0.0851,2176.7,2176.2,10.03444223]
[1750607945090,8.3851,2177.1,2176.5,10.03444223]
[1750607945408,8.3851,2177.1,2176.6,2.358]
[1750607945409,0.05742897,2177.0,2176.6,2.358]
[1750607946426,0.14252781,2177.1,2176.6,2.358]
[1750607946720,0.14252311,2177.4,2176.8,10.03444223]
[1750607947085,0.0851,2177.8,2177.1,10.03444223]
[1750607947325,0.0851,2177.8,2177.4,10.03444223]
[1750607947619,0.0851,2177.8,2177.5,2.358]
[1750607947823,4.59040836,2178.5,2177.5,2.358]
[1750607948024,8.294,2178.2,2177.5,2.358]
[1750607948237,0.057404,2178.1,2177.5,2.358]
[1750607949529,0.057404,2178.1,2177.5,2.357]
[1750607949713,4.6485769,2178.1,2177.5,2.357]
[1750607950119,4.6485769,2178.1,2176.9,12.05199765]
[1750607950120,4.5922192,2177.6,2176.9,11.045]
[1750607950431,12.93391235,2177.5,2176.9,13.402]
[1750607950589,12.87649331,2177.5,2176.9,13.402]
[1750607950792,12.87649331,2177.5,2176.9,11.045]
[1750607950985,12.87649331,2177.5,2176.9,13.402]
[1750607951239,8.284,2177.5,2176.9,11.045]
[1750607951404,8.284,2177.5,2177.0,2.357]
[1750607951589,8.281,2177.7,2177.1,10.03444223]
[1750607951794,0.05741422,2177.6,2177.1,10.03444223]
[1750607952837,0.05741422,2177.6,2177.2,2.357]
[1750607953132,4.67758105,2177.5,2176.9,13.402]
[1750607953301,0.05742167,2177.4,2176.9,13.402]
[1750607953499,8.3591,2177.5,2176.9,15.74564422]
[1750607953799,0.0574155,2177.4,2176.9,11.045]
[1750607954006,0.0574155,2177.4,2177.0,2.357]
[1750607954729,0.0574155,2177.4,2177.1,2.357]
[1750607955334,0.05741548,2177.5,2177.1,2.357]
[1750607956028,0.05741548,2177.5,2177.1,12.39144223]
[1750607956596,0.05741548,2177.5,2177.1,13.36662466]
[1750607956827,0.0851,2177.8,2177.2,0.55]
[1750607957132,8.3461,2177.8,2177.2,0.55]
[1750607957320,0.05740488,2177.7,2177.2,0.55]
[1750607957523,0.05740488,2177.7,2177.3,2.357]
[1750607957896,4.64950735,2177.7,2177.1,10.03444223]
[1750607958216,4.64942179,2177.7,2177.1,12.39144223]
[1750607958544,0.0851,2177.6,2176.5,0.7743]
[1750607958693,8.30942812,2177.5,2176.5,3.1313]
[1750607958889,8.30942812,2177.5,2175.9,15.6346468]
[1750607958890,0.0851,2176.8,2176.1,2.357]
[1750607959095,0.0851,2176.8,2175.9,10.80874223]
[1750607959096,8.259,2176.7,2175.9,10.80874223]
[1750607959296,0.05743874,2176.6,2175.9,2.29521355]
[1750607959536,0.0851,2176.5,2175.5,2.26646749]
[1750607959696,0.05745735,2176.4,2175.2,2.25959975]
[1750607959896,0.0851,2175.8,2175.2,2.72153089]
[1750607960117,8.264,2175.7,2175.2,2.72153089]
[1750607960323,0.05746577,2175.6,2175.2,2.72153089]
[1750607960516,8.264,2175.7,2175.2,2.72153089]
[1750607960835,4.59664444,2175.5,2175.0,2.21547742]
[1750607961035,0.03425164,2175.4,2174.7,2.27708213]
[1750607961438,0.03425164,2175.4,2174.7,2.74770552]
[1750607961736,0.03425164,2175.7,2175.1,2.21117299]
[1750607961940,8.26,2175.6,2175.1,2.21117299]
[1750607962112,4.6310532,2175.5,2174.8,2.20284613]
[1750607962437,0.0851,2175.1,2174.9,2.23173894]
[1750607962733,0.0851,2175.5,2174.9,12.26618117]
[1750607962917,0.0851,2175.5,2175.0,2.26779175]
[1750607963121,8.285,2175.6,2175.2,10.03444223]
[1750607963307,0.03425164,2175.5,2175.0,12.26779175]
[1750607963669,0.03425164,2175.5,2174.9,12.23173894]
[1750607963954,0.0851,2175.4,2174.9,2.23173894]
[1750607964237,0.0851,2175.4,2174.8,4.59828849]
[1750607964238,0.03425164,2175.3,2174.8,2.28637578]
[1750607964396,0.0851,2175.2,2174.0,2.28124205]
[1750607964593,4.59891365,2174.5,2173.5,2.23441692]
[1750607964799,30.0,2174.6,2174.5,12.26905426]
[1750607965011,4.59875833,2174.5,2174.4,4.63888679]
[1750607965336,4.59875833,2174.5,2173.4,2.5814891]
[1750607965337,40.80087085,2174.5,2173.5,2.299345]
[1750607965642,30.0,2174.3,2173.5,2.299345]
[1750607965852,15.64179401,2174.5,2173.5,12.299345]
[1750607966147,8.367,2174.4,2173.7,2.2962009]
[1750607966307,0.0851,2175.2,2174.2,0.55]